bitfinex/quotes_ETHUSD_20241104
["timestamp","ask_amount","ask_price","bid_price","bid_amount"]
[1730752331791,4.11834,2428.2,2427.8,0.7671]
[1730752331965,4.19283882,2428.1,2427.9,0.44256764]
[1730752332169,4.19283882,2428.1,2428.0,0.44256764]
[1730752332988,0.07437882,2428.1,2428.0,0.44256764]
[1730752334076,4.19281882,2428.1,2428.0,0.44256764]
[1730752334398,4.96501882,2428.1,2428.0,0.44256764]
[1730752334564,5.8733497,2428.1,2428.0,0.44256764]
[1730752336450,7.1595658,2428.1,2428.0,0.17020835]
[1730752336798,4.11929,2427.6,2427.5,0.27229204]
[1730752336998,4.19348722,2427.6,2427.5,0.4424598]
[1730752338295,4.11946,2427.5,2427.4,0.0602689]
[1730752338495,4.11946,2427.5,2427.4,0.50231843]
[1730752339085,4.19365722,2427.5,2427.4,0.50231843]
[1730752340253,4.96585722,2427.5,2427.4,0.50231843]
[1730752340952,4.19365722,2427.5,2427.4,0.50231843]
[1730752341798,4.19365722,2427.5,2427.4,0.0602689]
[1730752341953,4.19365722,2427.5,2427.4,0.50195314]
[1730752342157,0.07419722,2427.5,2427.4,0.2301375]
[1730752342353,4.11919,2427.7,2427.4,1.31005314]
[1730752342594,4.11919,2427.7,2427.5,0.44168424]
[1730752342771,0.07403321,2427.6,2427.4,0.8683689]
[1730752342973,4.11899,2427.8,2427.5,0.4415956]
[1730752343174,4.11912,2427.7,2427.6,0.4415956]
[1730752343356,4.11865,2428.0,2427.7,0.8081]
[1730752343560,4.11865,2428.0,2427.8,0.16983451]
[1730752343760,4.11865,2428.0,2427.7,0.8081]
[1730752343761,4.11878,2427.9,2427.7,0.8081]
[1730752343960,4.11865,2428.0,2427.8,0.16984337]
[1730752344160,4.11865,2428.0,2427.9,0.16984337]
[1730752344364,4.22867855,2428.0,2427.9,0.16984337]
[1730752344975,0.11002855,2428.0,2427.9,0.16984337]
[1730752345666,0.11002855,2428.0,2427.9,0.44168122]
[1730752345869,0.11002855,2428.0,2427.9,0.16984337]
[1730752346169,0.11002855,2428.0,2427.9,0.44168122]
[1730752348515,0.11002855,2428.0,2427.9,1.23328122]
[1730752349314,0.11002855,2428.0,2427.9,0.44168122]
[1730752349805,0.11002855,2428.0,2427.9,0.16986241]
[1730752350026,0.11002855,2428.0,2427.9,0.44167024]
[1730752350217,4.22863855,2428.0,2427.9,0.44167024]
[1730752350368,5.50037129,2428.0,2427.9,0.16986322]
[1730752350768,5.50037129,2428.0,2427.6,0.27183187]
[1730752350968,4.11891,2427.9,2427.7,0.44170926]
[1730752351163,4.88461,2427.9,2427.8,0.16987739]
[1730752351415,6.17685721,2427.9,2427.4,0.0602689]
[1730752351588,4.94006,2427.5,2427.4,0.0602689]
[1730752351787,4.94006,2427.5,2427.4,0.23013674]
[1730752352105,4.94006,2427.5,2427.4,0.50195117]
[1730752352303,4.94006,2427.5,2427.4,0.23013674]
[1730752352674,4.94006,2427.5,2427.4,0.50195117]
[1730752352877,4.11946,2427.5,2427.4,0.23013674]
[1730752353395,4.11946,2427.5,2427.4,0.0602689]
[1730752353579,4.11946,2427.5,2427.4,0.2301166]
[1730752354708,4.19338781,2427.5,2427.4,0.2301166]
[1730752357415,4.19338781,2427.5,2427.4,0.0602689]
[1730752357616,4.19338781,2427.5,2427.4,0.23008162]
[1730752359132,4.19338781,2427.5,2427.4,0.0602689]
[1730752359638,4.19338781,2427.5,2427.4,0.2300943]
[1730752360134,4.19338781,2427.5,2427.4,0.0602689]
[1730752361513,0.07392781,2427.5,2427.4,0.0602689]
[1730752361807,0.07386922,2427.5,2427.4,0.8934689]
[1730752362012,4.11919,2427.7,2427.4,1.33506591]
[1730752362213,0.07386922,2427.6,2427.5,0.44159701]
[1730752362614,0.07386922,2427.6,2427.4,0.0602689]
[1730752362817,4.19317922,2427.6,2427.5,0.44162714]
[1730752363126,4.19317922,2427.6,2427.5,0.44164215]
[1730752363705,4.19317922,2427.6,2427.5,0.16985241]
[1730752364107,4.19317922,2427.6,2427.5,0.441739]
[1730752364441,4.19317922,2427.6,2427.5,0.44178734]
[1730752365040,4.95277922,2427.6,2427.5,0.44178734]
[1730752365348,4.95277922,2427.6,2427.5,0.44182025]
[1730752365744,4.95277922,2427.6,2427.5,0.16990825]
[1730752366108,4.95277922,2427.6,2427.5,0.44182203]
[1730752366321,4.11946,2427.5,2427.4,0.0602689]
[1730752366526,4.11946,2427.5,2427.4,0.33220286]
[1730752366721,4.19334484,2427.5,2427.4,0.50214541]
[1730752369060,4.19334484,2427.5,2427.4,0.50211875]
[1730752369264,0.07388484,2427.5,2427.4,0.50211875]
[1730752369836,4.11915,2427.7,2427.4,0.0602689]
[1730752370036,4.11906,2427.8,2427.5,1.00032825]
[1730752370237,8.23812,2427.8,2427.6,0.44183933]
[1730752370456,8.23812,2427.8,2427.7,0.16992825]
[1730752373454,4.11912,2427.7,2427.5,0.8304]
[1730752373657,4.11912,2427.7,2427.6,0.44184369]
[1730752373902,4.11912,2427.7,2427.6,0.27192034]
[1730752374187,4.11906,2427.8,2427.6,0.44185437]
[1730752374379,4.11906,2427.8,2427.7,0.16993403]
[1730752375442,4.11906,2427.8,2427.7,0.44188384]
[1730752375648,4.11906,2427.8,2427.7,0.16993403]
[1730752375858,4.11906,2427.8,2427.7,0.44187503]
[1730752377051,4.11878,2427.9,2427.5,4.94979]
[1730752377254,4.11878,2427.9,2427.6,0.44194439]
[1730752377449,4.11878,2427.9,2427.7,0.44194439]
[1730752377788,4.11878,2427.9,2427.8,0.44194439]
[1730752378257,0.11002855,2428.0,2427.8,0.44194439]
[1730752378591,4.22872855,2428.0,2427.9,0.92086865]
[1730752378743,4.22872855,2428.0,2427.9,0.16996865]
[1730752379566,4.22872855,2428.0,2427.9,0.44205118]
[1730752380752,5.8892554,2428.0,2427.9,0.44205118]
[1730752381088,7.18150261,2428.0,2427.9,0.16996865]
[1730752381476,4.11918,2427.7,2427.4,0.0602689]
[1730752381655,4.11929,2427.6,2427.5,0.44225084]
[1730752382193,4.11929,2427.6,2427.5,0.17008651]
[1730752382352,5.15494172,2427.6,2427.5,0.17008651]
[1730752383389,4.11946,2427.5,2427.4,0.0602689]
[1730752383599,4.11946,2427.5,2427.4,0.50253363]
[1730752384152,4.11946,2427.5,2427.4,0.50254116]
[1730752384690,4.19345808,2427.5,2427.4,0.50254116]
[1730752385290,4.19345808,2427.5,2427.4,0.50253371]
[1730752385966,0.07399808,2427.5,2427.4,0.50253371]
[1730752386158,0.07399808,2427.5,2427.4,1.26743371]
[1730752386685,4.22915855,2427.7,2427.4,1.26743371]
[1730752386989,4.11931,2427.6,2427.5,0.44226481]
[1730752387287,4.22915855,2427.7,2427.5,0.44226481]
[1730752387448,4.22915855,2427.7,2427.6,0.44226481]
[1730752389057,0.11002855,2427.7,2427.6,0.44226481]
[1730752389261,4.22914855,2427.7,2427.6,0.44226481]
[1730752389688,0.11002855,2427.7,2427.6,0.44226481]
[1730752389990,0.11002855,2427.7,2427.6,5.39395481]
[1730752390196,0.11002855,2427.7,2427.6,9.21609382]
[1730752390363,0.11002855,2427.7,2427.6,9.94191698]
[1730752390701,0.11002855,2427.7,2427.6,11.01339052]
[1730752391257,0.11002855,2427.7,2427.6,10.72981892]
[1730752391676,0.11002855,2427.7,2427.6,11.58864993]
[1730752392249,0.11002855,2427.7,2427.6,11.58827708]
[1730752393278,0.11002855,2427.7,2427.6,11.87153496]
[1730752393479,0.11002855,2427.7,2427.6,11.14602713]
[1730752393690,0.11002855,2427.7,2427.6,11.87104665]
[1730752393999,0.11002855,2427.7,2427.6,11.87105184]
[1730752394204,0.11002855,2427.7,2427.6,11.87104858]
[1730752394582,0.11002855,2427.7,2427.6,11.01221757]
[1730752394779,0.11002855,2427.7,2427.6,11.87036962]
[1730752394985,0.11002855,2427.7,2427.6,11.58710945]
[1730752395335,0.11002855,2427.7,2427.6,10.72827844]
[1730752395485,4.11755,2428.7,2428.3,4.91823]
[1730752395681,5.8321248,2428.9,2428.4,0.44156711]
[1730752395682,5.40941721,2428.9,2428.4,0.44156711]
[1730752395991,4.11717,2428.9,2428.5,4.55930991]
[1730752396194,4.11717,2428.9,2428.6,0.16989823]
[1730752396444,4.11717,2428.9,2428.5,4.38924726]
[1730752396582,4.11717,2428.9,2428.6,0.16967118]
[1730752396783,5.40912721,2429.1,2428.7,4.9176]
[1730752397078,4.11683,2429.1,2428.8,0.16966964]
[1730752397281,4.11683,2429.1,2428.9,0.16968276]
[1730752397592,4.11683,2429.1,2428.7,5.18911826]
[1730752397593,4.11683,2429.1,2428.8,0.16953452]
[1730752397778,4.11683,2429.1,2428.7,4.9176]
[1730752397979,4.11683,2429.1,2428.8,0.1695344]
[1730752398217,4.117,2429.0,2428.7,0.8002]
[1730752398420,4.11733,2428.8,2428.7,0.16946398]
[1730752398590,4.11733,2428.8,2428.6,0.16948092]
[1730752398786,4.11733,2428.8,2428.6,0.16948149]
[1730752399082,4.11692,2429.0,2428.7,0.16947653]
[1730752399282,4.608693,2429.1,2428.7,4.1174]
[1730752399515,0.07455632,2428.9,2428.6,4.11758]
[1730752399693,4.11693,2429.0,2428.7,0.16938099]
[1730752399890,0.07455632,2428.8,2428.7,0.16938099]
[1730752400261,8.23361,2429.1,2428.6,4.11751]
[1730752400531,0.07455632,2428.8,2428.6,4.11751]
[1730752400718,8.23361,2429.1,2428.6,4.11751]
[1730752400878,0.07455632,2428.7,2428.6,4.11751]
[1730752401222,8.23361,2429.1,2428.6,4.28683234]
[1730752401424,8.23361,2429.1,2428.6,4.11751]
[1730752401425,0.07455632,2428.7,2428.6,4.11751]
[1730752401597,4.11692,2429.0,2428.6,4.28677103]
[1730752401917,0.07455632,2428.9,2428.6,4.11751]
[1730752402124,0.07455632,2428.9,2428.5,4.91793]
[1730752402287,0.07455632,2428.9,2428.6,4.11759]
[1730752402818,0.07455632,2428.9,2428.5,4.91794]
[1730752402986,0.07455632,2428.9,2428.4,4.1178]
[1730752402987,4.89367,2428.8,2428.4,4.1178]
[1730752403183,4.89367,2428.8,2428.5,0.16922245]
[1730752403384,4.89367,2428.8,2428.4,4.1178]
[1730752403603,0.07455632,2428.7,2428.4,4.1178]
[1730752404030,0.07455632,2428.7,2428.1,0.7898]
[1730752404031,4.11792,2428.5,2428.1,0.7898]
[1730752404232,4.19217632,2428.6,2428.2,4.11826]
[1730752404428,4.11746,2428.7,2428.3,4.11809]
[1730752404829,0.07455632,2428.6,2428.2,4.11824]
[1730752405147,4.19215632,2428.6,2428.3,0.16922535]
[1730752405349,4.19215632,2428.6,2428.2,4.11824]
[1730752406443,4.19215632,2428.6,2428.3,0.1692334]
[1730752406618,4.19219632,2428.6,2428.3,0.1692334]
[1730752406819,4.19219632,2428.6,2428.3,0.16923154]
[1730752407334,4.19219632,2428.6,2428.3,0.16922692]
[1730752407928,4.19219632,2428.6,2428.2,0.16924126]
[1730752408751,0.07455632,2428.6,2428.2,4.11827]
[1730752409255,0.07455632,2428.6,2428.3,4.11803]
[1730752410754,0.07455632,2428.6,2428.2,4.11824]
[1730752411047,0.07455632,2428.6,2428.3,0.16926387]
[1730752411624,0.07455632,2428.6,2428.2,4.11824]
[1730752412541,4.19217632,2428.6,2428.2,4.11824]
[1730752412869,0.07455632,2428.6,2428.3,0.1693276]
[1730752414263,0.07455632,2428.6,2428.3,4.2874276]
[1730752414426,0.07455632,2428.6,2428.3,4.1181]
[1730752415460,0.07455632,2428.6,2428.4,0.16949042]
[1730752415768,0.07455632,2428.6,2428.3,4.1181]
[1730752415936,0.07455632,2428.6,2428.4,0.16955846]
[1730752416123,0.07455632,2428.6,2428.3,4.1181]
[1730752416328,0.07455632,2428.6,2428.4,0.16961368]
[1730752416527,4.89372,2428.8,2428.4,0.7929]
[1730752416841,4.1169,2429.1,2428.4,1.42525329]
[1730752417162,0.07466169,2429.0,2428.7,4.11735]
[1730752417378,0.07466169,2429.0,2428.8,0.16960911]
[1730752417663,0.07466169,2429.0,2428.8,0.7724]
[1730752417872,4.8803,2429.2,2428.8,0.7724]
[1730752418036,4.8803,2429.2,2428.9,0.16965893]
[1730752418352,4.8803,2429.2,2428.8,0.7724]
[1730752418353,4.11683,2429.1,2428.8,0.7724]
[1730752418550,4.11683,2429.1,2428.9,0.16970478]
[1730752418551,4.11692,2429.0,2428.9,0.16970478]
[1730752418728,4.1171,2428.9,2428.6,0.27155083]
[1730752418928,4.1171,2428.9,2428.7,0.16972141]
[1730752419157,4.1171,2428.9,2428.6,0.27155083]
[1730752419158,4.1171,2428.9,2428.8,0.16972141]
[1730752419358,4.11692,2429.0,2428.8,0.16972141]
[1730752419670,4.11692,2429.0,2428.9,0.16972141]
[1730752420165,5.016659,2429.0,2428.9,0.16972141]
[1730752420371,4.11715,2428.9,2428.6,0.27169686]
[1730752420573,4.11715,2428.9,2428.7,0.16980676]
[1730752420736,4.11715,2428.9,2428.8,0.16980676]
[1730752421539,4.11693,2429.0,2428.5,4.95513533]
[1730752421741,4.11709,2428.9,2428.6,0.441712]
[1730752421947,4.11709,2428.9,2428.7,0.441712]
[1730752422157,4.11709,2428.9,2428.8,0.16987629]
[1730752423586,4.90959,2428.9,2428.8,0.16987629]
[1730752425036,4.11709,2428.9,2428.8,0.16987629]
[1730752425293,4.11709,2428.9,2428.8,0.16997586]
[1730752425569,4.11709,2428.9,2428.5,4.11775]
[1730752425775,4.11709,2428.9,2428.8,0.17000477]
[1730752428676,4.11709,2428.9,2428.8,0.44206612]
[1730752428885,4.11709,2428.9,2428.8,0.17000477]
[1730752429169,4.11709,2428.9,2428.8,0.17002469]
[1730752429331,4.11709,2428.9,2428.8,0.44206986]
[1730752429531,4.1919624,2428.9,2428.8,0.44206986]
[1730752430031,4.1919624,2428.9,2428.8,0.17002469]
[1730752430474,4.1919624,2428.9,2428.8,0.44208604]
[1730752431387,4.1919624,2428.9,2428.8,0.17002469]
[1730752432570,4.1919624,2428.9,2428.8,0.4421433]
[1730752432775,4.1919624,2428.9,2428.4,4.6679]
[1730752432974,4.1919624,2428.9,2428.5,0.44216336]
[1730752433185,4.1919624,2428.9,2428.6,0.44216336]
[1730752433360,4.1919624,2428.9,2428.7,0.44216336]
[1730752433670,4.1919624,2428.9,2428.8,0.44216336]
[1730752435403,4.1919624,2428.9,2428.8,0.17005287]
[1730752435571,6.02602936,2428.9,2428.8,0.17005287]
[1730752436495,4.9866624,2428.9,2428.8,0.17005287]
[1730752438178,6.27890961,2428.9,2428.8,0.17005287]
[1730752438511,4.11776,2428.5,2428.4,0.2721919]
[1730752438709,4.11776,2428.5,2428.4,0.44229714]
[1730752439006,4.97969339,2428.5,2428.4,0.17010524]
[1730752439307,4.97969339,2428.5,2428.4,0.44226901]
[1730752439481,4.97969339,2428.5,2428.4,0.17010524]
[1730752440064,7.83868914,2428.5,2428.4,0.17010524]
[1730752440366,4.11848,2428.1,2427.9,0.27213151]
[1730752440572,4.11848,2428.1,2428.0,0.44218749]
[1730752444609,4.19291144,2428.1,2428.0,0.44218749]
[1730752445438,4.19291144,2428.1,2428.0,0.17005598]
[1730752445947,4.19291144,2428.1,2428.0,0.44218749]
[1730752446155,4.19291144,2428.1,2428.0,0.16982945]
[1730752446320,4.11865,2428.0,2427.7,0.7717]
[1730752446530,4.19291144,2428.1,2427.8,0.44155982]
[1730752446864,8.23704,2428.1,2427.9,0.44155982]
[1730752447155,8.23704,2428.1,2427.7,4.89081]
[1730752447156,0.07443144,2428.0,2427.7,4.89081]
[1730752447448,0.07443144,2428.0,2427.8,0.44148395]
[1730752447645,0.07443144,2428.0,2427.9,0.44148395]
[1730752448341,0.07443144,2428.0,2427.9,0.16979157]
[1730752448545,0.07443144,2428.0,2427.9,0.44148395]
[1730752448713,0.07443144,2428.0,2427.9,0.16979157]
[1730752448917,0.07443144,2428.0,2427.9,0.44148395]
[1730752449151,0.07443144,2428.0,2427.9,0.16979157]
[1730752449456,0.07443144,2428.0,2427.9,0.44148395]
[1730752449613,0.07443144,2428.0,2427.9,0.16979157]
[1730752449813,0.07443144,2428.0,2427.9,0.44139982]
[1730752450127,0.07443144,2428.0,2427.9,0.16975922]
[1730752450323,4.11831,2428.2,2427.9,0.44139982]
[1730752450534,4.11831,2428.2,2428.0,0.16975922]
[1730752450737,4.87694,2428.4,2428.1,0.16975922]
[1730752450738,4.11811,2428.3,2428.1,0.16975922]
[1730752450951,4.11811,2428.3,2428.0,0.7698]
[1730752451151,4.11828,2428.2,2428.1,0.16976128]
[1730752453357,4.11828,2428.2,2428.0,0.7698]
[1730752453358,4.11844,2428.1,2428.0,0.7698]
[1730752453558,4.11828,2428.2,2428.0,0.93953891]
[1730752453745,4.11828,2428.2,2428.1,0.16973891]
[1730752453951,4.11861,2428.0,2427.9,0.27161031]
[1730752454170,4.11861,2428.0,2427.9,0.16973039]
[1730752455379,4.11852,2428.1,2427.9,0.16973039]
[1730752455686,4.11852,2428.1,2428.0,0.16973039]
[1730752456736,4.11823,2428.3,2428.0,0.94693039]
[1730752456979,4.11829,2428.2,2428.1,0.16973039]
[1730752457179,4.11829,2428.2,2428.0,0.7772]
[1730752457384,8.23668,2428.2,2428.0,0.7772]
[1730752457676,4.11829,2428.2,2427.8,4.91509]
[1730752457878,4.11829,2428.2,2427.9,0.16972102]
[1730752458082,4.11829,2428.2,2428.0,0.16972102]
[1730752458379,4.11829,2428.2,2428.1,0.16972102]
[1730752459778,4.19264729,2428.2,2428.1,0.16972102]
[1730752460536,4.19264729,2428.2,2427.8,4.91509]
[1730752460743,4.19264729,2428.2,2427.9,0.44144361]
[1730752461036,4.19264729,2428.2,2428.0,0.16977606]
[1730752461208,4.19264729,2428.2,2428.1,0.16977606]
[1730752463232,5.00174729,2428.2,2428.1,0.16977606]
[1730752463434,4.11861,2428.0,2427.9,0.27174479]
[1730752463597,4.11861,2428.0,2427.9,0.44162274]
[1730752463922,4.11845,2428.1,2427.9,0.44170677]
[1730752464123,0.07435729,2428.0,2427.8,0.7962]
[1730752464332,4.19297729,2428.0,2427.9,0.44169474]
[1730752464737,0.07435729,2428.0,2427.9,0.44169474]
[1730752465094,8.23701,2428.1,2427.9,0.44169474]
[1730752465329,4.19296729,2428.0,2427.8,0.7962]
[1730752465538,4.19296729,2428.0,2427.9,0.44201146]
[1730752467702,4.19296729,2428.0,2427.8,0.7962]
[1730752468199,4.19296729,2428.0,2427.9,0.44234871]
[1730752469401,0.07435729,2428.0,2427.9,0.44234871]
[1730752470635,4.19296729,2428.0,2427.9,0.44234871]
[1730752470931,0.07435729,2428.0,2427.9,0.44234871]
[1730752471516,0.07435729,2428.0,2427.9,0.44278029]
[1730752473418,0.07435729,2428.0,2427.9,0.4427781]
[1730752475059,0.07435729,2428.0,2427.8,0.7962]
[1730752475352,0.07435729,2428.0,2427.9,0.44279738]
[1730752477127,4.11843,2428.2,2427.9,0.44279738]
[1730752477329,0.07436119,2428.0,2427.8,0.7962]
[1730752477626,4.11843,2428.2,2427.9,0.4428017]
[1730752477844,4.11843,2428.2,2428.0,0.4428017]
[1730752477845,4.11845,2428.1,2428.0,0.4428017]
[1730752478223,4.89145,2428.1,2428.0,0.4428017]
[1730752478621,4.89145,2428.1,2428.0,0.4429976]
[1730752478949,4.89145,2428.1,2428.0,0.44298941]
[1730752479657,4.11845,2428.1,2428.0,0.44298941]
[1730752481921,6.10551367,2428.1,2428.0,0.44298941]
[1730752482523,6.10551367,2428.1,2428.0,0.17037057]
[1730752482846,7.82046847,2428.1,2428.0,0.17037057]
[1730752483018,7.82046847,2428.1,2427.5,0.28404566]
[1730752483224,4.1192,2427.7,2427.5,0.28404566]
[1730752483456,4.1192,2427.7,2427.4,1.13243197]
[1730752483649,4.1192,2427.7,2427.5,0.71520415]
[1730752483856,5.41250704,2428.0,2427.5,0.7731]
[1730752484030,4.11888,2427.9,2427.5,0.7731]
[1730752484234,4.11884,2427.9,2427.5,0.7731]
[1730752484562,4.11897,2427.8,2427.5,1.48848101]
[1730752484749,4.11897,2427.8,2427.5,1.84614377]
[1730752484952,8.23773,2427.9,2427.5,1.84614377]
[1730752485262,8.23771,2427.9,2427.6,0.44284721]
[1730752485512,4.11895,2427.8,2427.7,0.44284721]
[1730752487942,4.11895,2427.8,2427.7,0.44267329]
[1730752489666,4.19319406,2427.8,2427.7,0.44267329]
[1730752490578,0.07424406,2427.8,2427.7,0.44267329]
[1730752492347,0.07424406,2427.8,2427.7,0.44257681]
[1730752496470,4.19319406,2427.8,2427.7,0.44257681]
[1730752500973,4.94829406,2427.8,2427.7,0.44257681]
[1730752501173,6.15588265,2427.8,2427.7,0.44257681]
[1730752501383,4.94829406,2427.8,2427.7,0.44257681]
[1730752503496,6.48984685,2427.8,2427.7,0.44257681]
[1730752504959,13.18826322,2427.8,2427.7,0.17021188]
[1730752505161,4.87046,2427.5,2427.4,0.0602689]
[1730752505406,6.66858753,2427.5,2427.4,0.0602689]
[1730752505624,7.11140759,2427.5,2427.4,0.0602689]
[1730752505833,4.95454401,2427.5,2427.4,8.9e-06]
[1730752505975,4.12014,2427.1,2427.0,0.17025226]
[1730752506174,4.93122,2426.7,2426.5,0.06181208]
[1730752506411,4.93122,2426.7,2426.6,0.17001054]
[1730752506708,6.47277279,2426.7,2426.6,0.17001054]
[1730752507331,4.12099,2426.6,2426.5,0.06181208]
[1730752507475,5.59243528,2426.6,2426.5,0.06181208]
[1730752508082,5.69813528,2426.6,2426.5,0.06181208]
[1730752508403,4.1215,2426.3,2426.2,0.1698414]
[1730752508804,5.66289279,2426.4,2426.2,0.1698414]
[1730752509323,9.78437279,2426.4,2426.1,0.2301103]
[1730752509533,8.24282,2426.4,2426.1,0.2301103]
[1730752509691,4.12134,2426.4,2426.1,0.2301103]
[1730752509893,4.12117,2426.5,2426.1,0.2301103]
[1730752510891,4.12117,2426.5,2426.1,0.22973237]
[1730752511300,4.12117,2426.5,2426.1,0.0602689]
[1730752511512,4.12134,2426.4,2426.1,0.0602689]
[1730752513206,4.2267,2426.6,2426.1,4.1820789]
[1730752513539,4.2267,2426.6,2426.1,4.1821089]
[1730752513897,8.34782,2426.6,2426.1,0.0602689]
[1730752514217,4.12116,2426.5,2426.1,0.0602689]
[1730752514416,4.12133,2426.4,2426.1,0.0602689]
[1730752514727,4.12167,2426.2,2426.1,0.0602689]
[1730752515751,7.70415439,2426.2,2426.1,0.0602689]
[1730752517368,8.46255439,2426.2,2426.1,0.0602689]
[1730752517569,9.73195983,2426.2,2426.1,0.0602689]
[1730752517725,9.72195983,2426.2,2426.1,0.0602689]
[1730752519233,9.73195983,2426.2,2426.1,0.0602689]
[1730752519568,12.73195983,2426.2,2426.1,0.0602689]
[1730752519729,12.80477781,2426.2,2426.1,0.0602689]
[1730752524142,9.79477781,2426.2,2426.1,0.0602689]
[1730752524371,4.95288798,2426.2,2426.1,0.0602689]
[1730752524870,4.19448798,2426.2,2426.1,0.0602689]
[1730752526091,0.07281798,2426.2,2426.1,0.0602689]
[1730752526248,4.12167,2426.2,2426.1,0.0602689]
[1730752526453,4.19444105,2426.2,2426.1,0.0602689]
[1730752527760,0.07277105,2426.2,2426.1,0.0602689]
[1730752528126,4.12159,2426.3,2426.1,0.0602689]
[1730752528289,0.07255605,2426.2,2426.1,0.8782689]
[1730752528788,4.12167,2426.2,2426.1,0.0602689]
[1730752529087,8.60103644,2426.2,2426.1,0.0602689]
[1730752529456,9.40263644,2426.2,2426.1,0.0602689]
[1730752531268,12.40263644,2426.2,2426.1,0.0602689]
[1730752531670,12.41263644,2426.2,2426.1,0.0602689]
[1730752532076,12.4985162,2426.2,2426.1,0.0602689]
[1730752533777,12.4885162,2426.2,2426.1,0.0602689]
[1730752539104,12.4985162,2426.2,2426.1,0.0602689]
[1730752540776,12.4985162,2426.2,2426.1,8.9e-06]
[1730752543171,13.0485162,2426.2,2426.1,8.9e-06]
[1730752543680,16.63100059,2426.2,2426.1,8.9e-06]
[1730752543880,4.12354,2425.1,2425.0,0.76980545]
[1730752544083,4.27152986,2425.1,2425.0,1.21130728]
[1730752544911,4.27152986,2425.1,2425.0,0.44150728]
[1730752545279,4.27152986,2425.1,2425.0,5.45e-06]
[1730752547499,4.27152986,2425.1,2425.0,0.44167181]
[1730752548203,4.27152986,2425.1,2425.0,5.45e-06]
[1730752548392,4.27152986,2425.1,2425.0,0.44157399]
[1730752549640,9.52748724,2425.1,2425.0,0.44157399]
[1730752549804,9.52748724,2425.1,2424.9,0.0602689]
[1730752549805,7.13371,2425.0,2424.9,0.0602689]
[1730752550123,8.03749676,2425.0,2424.9,0.0602689]
[1730752550325,10.11691617,2425.0,2424.9,0.0602689]
[1730752553495,10.12691617,2425.0,2424.9,0.0602689]
[1730752554616,10.11691617,2425.0,2424.9,0.0602689]
[1730752554812,10.12691617,2425.0,2424.9,0.0602689]
[1730752555011,10.11691617,2425.0,2424.9,0.0602689]
[1730752556057,10.10691617,2425.0,2424.9,0.0602689]
[1730752556345,9.35071617,2425.0,2424.9,0.0602689]
[1730752556549,4.27129676,2425.0,2424.9,0.0602689]
[1730752558059,4.27129676,2425.0,2424.9,0.8230689]
[1730752559217,4.27129676,2425.0,2424.9,0.0602689]
[1730752565476,4.27129676,2425.0,2424.9,0.8169689]
[1730752566852,4.27129676,2425.0,2424.9,0.81565356]
[1730752567232,4.27129676,2425.0,2424.9,0.05895356]
[1730752567438,9.30552888,2425.0,2424.9,0.05895356]
[1730752567780,9.30552888,2425.0,2423.9,0.801]
[1730752567781,4.12541,2424.0,2423.9,0.801]
[1730752567980,4.12541,2424.0,2423.9,0.97005019]
[1730752568162,4.27266396,2424.0,2423.9,0.97005019]
[1730752568860,0.14725396,2424.0,2423.9,0.97005019]
[1730752569234,4.27266396,2424.0,2423.9,0.97005019]
[1730752569643,0.14725396,2424.0,2423.9,0.97005019]
[1730752570074,0.25295396,2424.0,2423.9,0.97005019]
[1730752570273,4.37836396,2424.0,2423.9,0.97005019]
[1730752571691,6.00252436,2424.0,2423.9,0.16905019]
[1730752571990,6.00252436,2424.0,2423.7,0.0602689]
[1730752571991,1.10331436,2424.0,2423.7,0.0602689]
[1730752572205,4.37846396,2424.0,2423.7,0.0602689]
[1730752572483,0.25295396,2424.0,2423.9,0.7961]
[1730752572688,0.25295396,2424.0,2423.9,0.9653604]
[1730752573038,0.1057,2424.0,2423.9,0.9653604]
[1730752573481,0.25264065,2424.0,2423.9,0.9653604]
[1730752574596,0.25264065,2424.0,2423.9,0.96538393]
[1730752576752,0.25264065,2424.0,2423.9,5.36184419]
[1730752578310,0.25264065,2424.0,2423.9,1.23626419]
[1730752578893,0.25264065,2424.0,2423.9,5.36184419]
[1730752579298,0.25264065,2424.0,2423.9,5.44434642]
[1730752579475,0.25264065,2424.0,2423.9,5.36184419]
[1730752581208,4.37805065,2424.0,2423.9,0.7961]
[1730752581503,4.37805065,2424.0,2423.9,0.96541866]
[1730752582106,0.25264065,2424.0,2423.9,0.96541866]
[1730752582280,0.25264065,2424.0,2423.9,1.236342]
[1730752582480,0.25264065,2424.0,2423.9,0.96541866]
[1730752582792,0.25264065,2424.0,2423.9,1.236342]
[1730752582978,0.25264065,2424.0,2423.9,0.96541866]
[1730752583179,0.25264065,2424.0,2423.9,1.236342]
[1730752583380,0.25264065,2424.0,2423.9,0.96541866]
[1730752583579,0.25264065,2424.0,2423.9,1.236342]
[1730752583905,0.25264065,2424.0,2423.9,0.96541866]
[1730752584070,0.25264065,2424.0,2423.9,1.236342]
[1730752584271,0.25264065,2424.0,2423.9,0.96541866]
[1730752584500,0.25264065,2424.0,2423.9,1.236342]
[1730752584699,0.25264065,2424.0,2423.9,0.7961]
[1730752584869,0.25264065,2424.0,2423.9,0.96539185]
[1730752585075,0.25264065,2424.0,2423.9,0.96539244]
[1730752585782,0.25264065,2424.0,2423.9,5.36184881]
[1730752585981,0.25264065,2424.0,2423.9,5.91184881]
[1730752586181,0.1057,2424.0,2423.9,5.91184881]
[1730752586418,0.25271507,2424.0,2423.9,5.91184881]
[1730752586615,0.1057,2424.0,2423.9,8.92184881]
[1730752586801,0.25271507,2424.0,2423.9,8.92184881]
[1730752586976,0.1057,2424.0,2423.9,8.92182489]
[1730752587171,0.25271507,2424.0,2423.9,8.92182489]
[1730752587920,0.1057,2424.0,2423.9,8.92182489]
[1730752588408,0.1057,2424.0,2423.9,8.48168]
[1730752588710,0.25282081,2424.0,2423.9,8.92182521]
[1730752590386,0.1057,2424.0,2423.9,8.92182521]
[1730752591214,4.12408,2424.8,2424.4,4.12467]
[1730752591489,4.12408,2424.8,2424.5,0.95227663]
[1730752591688,4.12408,2424.8,2424.5,0.783]
[1730752592024,4.12408,2424.8,2424.6,0.16930544]
[1730752592229,4.12408,2424.8,2424.5,0.783]
[1730752592535,4.12408,2424.8,2424.6,0.16930108]
[1730752592744,4.12408,2424.8,2424.5,0.783]
[1730752593056,4.1239,2424.9,2424.6,0.16930305]
[1730752593232,4.12362,2425.1,2424.5,4.90755]
[1730752593431,4.1238,2425.0,2424.6,5.06974761]
[1730752593631,4.1238,2425.0,2424.7,0.16928761]
[1730752593954,4.1238,2425.0,2424.8,0.16928761]
[1730752594113,4.1238,2425.0,2424.9,0.16928761]
[1730752594320,4.12355,2425.1,2424.7,4.29341754]
[1730752594553,0.14746539,2425.0,2424.8,0.16927754]